fUST/lending_fUST_20241224
["ID","MTS","AMOUNT","RATE_DAILY","PERIOD"]
[346500460,1735009843779,-500.0,0.00013698,2]
[346500462,1735009843788,-755.26,0.00013698,2]
[346500464,1735009843797,-504.70799912,0.00013698,2]
[346500466,1735009843806,-500.0,0.00013698,2]
[346500468,1735009843815,-500.0,0.00013698,2]
[346500470,1735009843824,-500.0,0.00013698,2]
[346500472,1735009843834,-500.0,0.00013698,2]
[346500473,1735009843843,-500.0,0.00013698,2]
[346500474,1735009843852,-601.14142963,0.00013698,2]
[346500476,1735009843861,-500.0,0.00013698,2]
[346500479,1735009843871,-2512.49,0.00013698,2]
[346500481,1735009843880,-500.0,0.00013698,2]
[346500483,1735009843889,-500.0,0.00013698,2]
[346500486,1735009843899,-2092.39,0.00013698,2]
[346500488,1735009843909,-500.86027764,0.00013698,2]
[346500490,1735009843918,-501.33450586,0.00013698,2]
[346500492,1735009843928,-500.0,0.00013698,2]
[346500494,1735009843937,-500.0,0.00013698,2]
[346500495,1735009843946,-500.0,0.00013698,2]
[346500497,1735009843956,-500.0,0.00013698,2]
[346500498,1735009843965,-500.0,0.00013698,2]
[346500499,1735009843974,-501.74896229,0.00013698,2]
[346500500,1735009843983,-502.29886983,0.00013698,2]
[346500501,1735009843993,-500.0,0.00013698,2]
[346500502,1735009844002,-500.0,0.00013698,2]
[346500503,1735009844011,-500.0,0.00013698,2]
[346500504,1735009844022,-500.0,0.00013698,2]
[346500505,1735009844031,-500.0,0.00013698,2]
[346500506,1735009844041,-1051.51,0.00013698,2]
[346500507,1735009844051,-500.0,0.00013698,2]
[346500508,1735009844060,-500.0,0.00013698,2]
[346500509,1735009844069,-500.0,0.00013698,2]
[346500510,1735009844079,-500.0,0.00013698,2]
[346500511,1735009844089,-500.0,0.00013698,2]
[346500512,1735009844098,-500.0,0.00013698,2]
[346500513,1735009844108,-500.0,0.00013698,2]
[346500514,1735009844119,-500.0,0.00013698,2]
[346500515,1735009844129,-500.0,0.00013698,2]
[346500516,1735009844138,-500.0,0.00013698,2]
[346500517,1735009844147,-1090.63,0.00013698,2]
[346500518,1735009844157,-1132.16,0.00013698,2]
[346500519,1735009844168,-500.0,0.00013698,2]
[346500520,1735009844177,-500.0,0.00013698,2]
[346500521,1735009844187,-500.0,0.00013698,2]
[346500522,1735009844196,-500.0,0.00013698,2]
[346500523,1735009844206,-500.0,0.00013698,2]
[346500524,1735009844215,-543.91466047,0.00013698,2]
[346500525,1735009844224,-500.0,0.00013698,2]
[346500526,1735009844234,-500.0,0.00013698,2]
[346500527,1735009844243,-500.0,0.00013698,2]
[346500528,1735009844252,-502.76593079,0.00013698,2]
[346500529,1735009844261,-500.0,0.00013698,2]
[346500530,1735009844270,-500.0,0.00013698,2]
[346500531,1735009844281,-500.0,0.00013698,2]
[346500532,1735009844290,-502.80851326,0.00013698,2]
[346500533,1735009844302,-511.41,0.00013698,2]
[346500534,1735009844311,-500.0,0.00013698,2]
[346500535,1735009844320,-500.0,0.00013698,2]
[346500536,1735009844330,-500.0,0.00013698,2]
[346500537,1735009844339,-500.0,0.00013698,2]
[346500538,1735009844348,-500.0,0.00013698,2]
[346500539,1735009844357,-500.0,0.00013698,2]
[346500540,1735009844367,-500.0,0.00013698,2]
[346500541,1735009844376,-1543.97,0.00013698,2]
[346500542,1735009844386,-552.92813253,0.00013698,2]
[346500543,1735009844395,-500.0,0.00013698,2]
[346500544,1735009844404,-500.0,0.00013698,2]
[346500545,1735009844413,-500.0,0.00013698,2]
[346500546,1735009844422,-504.35,0.00013698,2]
[346500547,1735009844432,-500.0,0.00013698,4]
[346500548,1735009844442,-500.0,0.00013698,2]
[346500549,1735009844451,-500.0,0.00013698,2]
[346500550,1735009844460,-500.0,0.00013698,2]
[346500551,1735009844469,-500.0,0.00013698,2]
[346500552,1735009844478,-500.0,0.00013698,2]
[346500553,1735009844488,-500.0,0.00013698,2]
[346500554,1735009844497,-500.0,0.00013698,2]
[346500555,1735009844506,-509.3195872,0.00013698,2]
[346500557,1735009844516,-405.4243581,0.00013698,2]
[346500558,1735009844526,-500.0,0.00013698,2]
[346500559,1735009844535,-2081.94,0.00013698,2]
[346500560,1735009844544,-500.0,0.00013698,2]
[346500561,1735009844553,-500.0,0.00013698,2]
[346500562,1735009844562,-500.0,0.00013698,2]
[346500563,1735009844571,-500.0,0.00013698,2]
[346500564,1735009844580,-500.0,0.00013698,2]
[346500565,1735009844589,-500.0,0.00013698,2]
[346500566,1735009844598,-500.0,0.00013698,2]
[346500567,1735009844608,-1239.39,0.00013698,2]
[346500568,1735009844617,-500.0,0.00013698,2]
[346500569,1735009844626,-500.0,0.00013698,2]
[346500570,1735009844635,-1121.88,0.00013698,2]
[346500571,1735009844645,-1194.01,0.00013698,2]
[346500572,1735009844654,-500.0,0.00013698,2]
[346500573,1735009844663,-500.0,0.00013698,2]
[346500574,1735009844673,-510.25210413,0.00013698,2]
[346500575,1735009844682,-500.0,0.00013698,2]
[346500576,1735009844691,-500.0,0.00013698,2]
[346500577,1735009844701,-500.0,0.00013698,2]
[346500578,1735009844710,-500.0,0.00013698,2]
[346500579,1735009844719,-500.0,0.00013698,2]
[346500580,1735009844728,-500.0,0.00013698,2]
[346500581,1735009844738,-1103.67,0.00013698,2]
[346500582,1735009844747,-1077.14,0.00013698,2]
[346500583,1735009844757,-500.0,0.00013698,2]
[346500584,1735009844766,-509.4,0.00013698,2]
[346500585,1735009844776,-500.0,0.00013698,2]
[346500586,1735009844786,-500.0,0.00013698,2]
[346500587,1735009844796,-500.0,0.00013698,2]
[346500588,1735009844806,-500.0,0.00013698,2]
[346500589,1735009844815,-505.24544976,0.00013698,2]
[346500590,1735009844824,-500.0,0.00013698,2]
[346500591,1735009844833,-500.0,0.00013698,2]
[346500592,1735009844843,-500.0,0.00013698,2]
[346500593,1735009844852,-500.0,0.00013698,2]
[346500594,1735009844862,-500.0,0.00013698,2]
[346500595,1735009844871,-500.0,0.00013698,2]
[346500596,1735009844993,-500.0,0.00013698,2]
[346500597,1735009845003,-1271.68247924,0.00013698,2]
[346500598,1735009845276,-520.14827581,0.00013698,2]
[346500738,1735009870263,200.0,0.000116,2]
[346500750,1735010135613,3128.80271417,0.00022,120]
[346500771,1735010535519,1431.82860766,0.000207,60]
[346500812,1735011040863,-100.0,0.000116,2]
[346500813,1735011040873,-393.99077948,0.00012212,2]
[346506534,1735011815928,500.0,0.00022,120]
[346506552,1735012233032,-300.0,0.00011333,2]
[346506554,1735012233041,-1142.30093009,0.00011334,2]
[346506577,1735012238635,-1511.89765099,0.00011334,2]
[346506803,1735012246932,-482.99,0.00011334,2]
[346506804,1735012414183,500.0,0.00022,120]
[346506809,1735013010282,250.9285208,0.00010097,2]
[346506810,1735013026028,99.0714792,0.00010097,2]
[346506811,1735013188247,591.34810142,9.957e-05,2]
[346506812,1735013211663,329.15439509,9.957e-05,2]
[346506813,1735013326400,-300.0,0.00010055,2]
[346506814,1735013326428,-300.0,0.00010055,2]
[346506815,1735013326457,-534.63434771,0.00010056,2]
[346506816,1735013326506,-1134.63434771,0.00010056,2]
[346506817,1735013326556,-1134.63434771,0.00010056,2]
[346506818,1735013351339,-300.0,0.00010055,2]
[346506819,1735013351369,-300.0,0.00010055,2]
[346506820,1735013351395,-602.71240857,0.00010056,2]
[346506821,1735013351433,-1202.71240857,0.00010056,2]
[346506822,1735013351468,-488.53786571,0.00010056,2]
[346506824,1735013376399,-1260.59166223,0.00010056,2]
[346506825,1735013376438,-1260.59166223,0.00010056,2]
[346506826,1735013376496,-228.21036185,0.00010056,2]
[346506827,1735013401299,-300.0,0.00010055,2]
[346506828,1735013401326,-1015.57953595,0.00010056,2]
[346506829,1735013401365,-1315.57953595,0.00010056,2]
[346506831,1735013418549,4300.0,0.00022,120]
[346506865,1735013432818,-14353.1810491,0.00010056,2]
[346506868,1735013432829,-368.40046671,0.00010056,2]
[346506870,1735013432838,-53.09218975,0.00010057,2]
[346506872,1735013432849,-878.73073785,0.00010057,2]
[346506874,1735013432858,-250.0,0.00010129,2]
[346506876,1735013432867,-1373.7568889,0.00010521,2]
[346506878,1735013432877,-250.9285208,0.00010618,2]
[346506880,1735013432885,-420.0,0.0001106,2]
[346506882,1735013432895,-1795.03598217,0.0001114,2]
[346506884,1735013432906,-744.7025,0.0001114,2]
[346507074,1735013438658,-1153.346855,0.0001114,2]
[346507075,1735013438670,-1500.0,0.0001114,2]
[346507100,1735013440698,-1000.0,0.0001114,2]
[346507192,1735013443861,-499.9967325,0.00011524,2]
[346507195,1735013443872,-1566.54951506,0.00011524,2]
[346507256,1735013446767,-313.908295,0.00011029,2]
[346507257,1735013446776,-8202.43030897,0.00011524,2]
[346507258,1735013446785,-153.0,0.00012078,2]
[346507259,1735013446795,-328.87030331,0.00012166,2]
[346507261,1735013711096,15673.89734497,0.00022,120]
[346507263,1735013982211,200.0,0.00020638,120]
[346507264,1735014273473,32388.12,0.00019,30]
[346507288,1735014631969,-470.328,0.000116,2]
[346507289,1735014631978,-313.908295,0.00011794,2]
[346507290,1735014631987,-224.08902427,0.00011982,2]
[346507291,1735014631996,-224.08902426,0.00011989,2]
[346507292,1735014632005,-300.0,0.00012008,2]
[346507293,1735014632015,-300.0,0.00012008,2]
[346507294,1735014632025,-10572.50032589,0.00012009,2]
[346507295,1735014632034,-849.80383041,0.00012082,2]
[346507296,1735014632051,-24050.19616959,0.00012082,2]
[346507297,1735014632060,-377.7005264,0.00012089,2]
[346507298,1735014632070,-233.0705762,0.00012161,2]
[346507299,1735014632079,-152.0,0.00012342,2]
[346507300,1735014632088,-190.1382389,0.00012638,2]
[346507301,1735014632097,-352.2473484,0.000127,2]
[346507302,1735014632107,-153.7817638,0.000127,2]
[346507303,1735014632116,-171.0,0.00012712,2]
[346507304,1735014632126,-151.0,0.00012738,2]
[346507305,1735014632135,-250.649999,0.0001288,2]
[346507306,1735014632144,-1676.62684164,0.000129,2]
[346507307,1735014632153,-1676.62684158,0.00012948,2]
[346507308,1735014632162,-793.4179198,0.00013014,2]
[346507309,1735014632172,-151.0,0.00013085,2]
[346507310,1735014632181,-161.04,0.00013154,2]
[346507311,1735014632191,-420.0,0.00013182,2]
[346507312,1735014632200,-420.0,0.00013209,2]
[346507313,1735014632208,-228.0,0.0001324,2]
[346507314,1735014632217,-352.2050668,0.00013475,2]
[346507315,1735014632226,-3697.84068424,0.00013561,2]
[346507316,1735014632238,-6609.31629513,0.00013561,2]
[346507317,1735014632248,-192.026809,0.00013598,2]
[346507318,1735014632258,-192.026809,0.00013598,2]
[346507319,1735014632267,-151.0,0.00013598,2]
[346507320,1735014632276,-666.0,0.00013598,2]
[346507321,1735014632285,-300.0,0.000136,3]
[346507322,1735014632294,-262.20350002,0.000136,3]
[346507323,1735014632304,-1668.16,0.000136,2]
[346507324,1735014632313,-2000.0,0.000136,2]
[346507325,1735014632322,-485.0,0.000136,4]
[346507326,1735014632331,-192.026809,0.000136,2]
[346507327,1735014632340,-192.026809,0.000136,2]
[346507328,1735014632350,-151.0,0.000136,2]
[346507329,1735014632359,-243.876,0.00013673,2]
[346507330,1735014632368,-207.43697567,0.00013695,2]
[346507331,1735014632377,-522.51901631,0.00013695,2]
[346507332,1735014632387,-500.0,0.00013695,2]
[346507333,1735014632396,-500.0,0.00013695,2]
[346507334,1735014632405,-158.55690373,0.00013695,2]
[346507335,1735014632414,-500.0,0.00013695,2]
[346507336,1735014632423,-259.35719634,0.00013695,2]
[346507337,1735014632432,-192.026809,0.00013695,2]
[346507338,1735014632441,-192.026809,0.00013695,2]
[346507339,1735014632451,-151.0,0.00013695,2]
[346507340,1735014632460,-6855.5163688,0.00013696,2]
[346507341,1735014632469,-1527.43128156,0.00013696,5]
[346507342,1735014632481,-5640.41275623,0.00013696,5]
[346507354,1735014637891,-415.53565102,0.00013561,2]
[346507355,1735014637900,-40906.05802246,0.00013696,5]
[346507356,1735014637948,-339.99999999,0.00013696,5]
[346507364,1735014642912,-150.0,0.00012391,2]
[346507365,1735014642922,-9849.80112115,0.00013696,5]
[346507374,1735014928503,158.46389959,0.00022,120]
[346507401,1735015832290,-1224.3460663,0.00012148,2]
[346507403,1735015832300,-1625.2283844,0.00012395,2]
[346507405,1735015832310,-1224.584296,0.00012628,2]
[346507407,1735015832319,-300.0,0.00012639,2]
[346507409,1735015832329,-24900.0,0.0001264,2]
[346507411,1735015832338,-477.2037013,0.00012731,2]
[346507413,1735015832347,-1257.47013122,0.0001292,2]
[346507415,1735015832357,-450.618,0.0001302,2]
[346507416,1735015832366,-428.0654857,0.000131,2]
[346507418,1735015832376,-153.4013351,0.000131,2]
[346507420,1735015832385,-10572.50032589,0.00013166,2]
[346507422,1735015832394,-172.96,0.00013192,2]
[346507424,1735015832403,-153.2604004,0.000132,2]
[346507426,1735015832412,-213.9640091,0.000132,2]
[346507428,1735015832422,-214.1722873,0.000132,2]
[346507430,1735015832431,-153.4013351,0.000132,2]
[346507432,1735015832441,-153.4013351,0.000132,2]
[346507434,1735015832450,-464.8601137,0.000132,2]
[346507435,1735015832459,-236.0,0.0001329,2]
[346507436,1735015832469,-352.2050668,0.00013475,2]
[346507437,1735015832478,-188.8502632,0.00013559,2]
[346507438,1735015832487,-666.0,0.00013598,2]
[346507439,1735015832496,-1501.34,0.000136,2]
[346507440,1735015832505,-1632.0,0.000136,2]
[346507441,1735015832514,-460.0,0.000136,4]
[346507442,1735015832524,-3427.7581844,0.00013696,2]
[346507443,1735015832533,-25703.61359886,0.00013696,5]
[346507444,1735015832545,-10121.25142,0.00013696,5]
[346507445,1735015832557,-2379.499984,0.00013696,5]
[346507446,1735015832568,-646.192853,0.00013696,5]
[346507447,1735015832579,-7188.17040297,0.00013696,5]
[346507452,1735015837929,-611.556,0.00013696,5]
[346507453,1735015837941,-1360.95449485,0.00013696,5]
[346507454,1735015837954,-110781.36088553,0.00013696,5]
[346507455,1735015837962,-23217.14498871,0.00013697,2]
[346507456,1735015837986,-3343.69442627,0.00013697,2]
[346507463,1735015840131,-1043.7,0.00013697,2]
[346507481,1735015843115,-136.46058502,0.00013697,2]
[346507482,1735015843125,-201.895912,0.00013697,2]
[346507483,1735015843134,-151.0,0.00013697,2]
[346507484,1735015843143,-151.0,0.00013697,2]
[346507485,1735015843152,-151.0,0.00013697,2]
[346507486,1735015843162,-13927.05982056,0.00013698,2]
[346507487,1735015843175,-505.66635033,0.00013698,2]
[346507488,1735015843184,-357.8579733,0.00013698,2]
[346507489,1735015843193,-500.0,0.00013698,2]
[346507490,1735015843207,-500.0,0.00013698,2]
[346507491,1735015843216,-500.0,0.00013698,2]
[346507492,1735015843225,-500.0,0.00013698,2]
[346507493,1735015843234,-500.0,0.00013698,2]
[346507494,1735015843245,-500.0,0.00013698,2]
[346507495,1735015843255,-500.0,0.00013698,2]
[346507496,1735015843264,-500.0,0.00013698,2]
[346507497,1735015843274,-500.0,0.00013698,2]
[346507498,1735015843283,-500.0,0.00013698,2]
[346507499,1735015843293,-500.0,0.00013698,2]
[346507500,1735015843302,-500.0,0.00013698,2]
[346507501,1735015843311,-500.0,0.00013698,2]
[346507502,1735015843321,-500.0,0.00013698,2]
[346507503,1735015843330,-500.0,0.00013698,2]
[346507504,1735015843341,-500.0,0.00013698,2]
[346507505,1735015843350,-500.0,0.00013698,2]
[346507506,1735015843359,-502.49106974,0.00013698,2]
[346507507,1735015843369,-500.0,0.00013698,2]
[346507508,1735015843378,-500.0,0.00013698,2]
[346507509,1735015843387,-500.0,0.00013698,2]
[346507510,1735015843396,-200.53510724,0.00013698,2]
[346507511,1735015843409,-299.46489276,0.00013698,2]
[346507512,1735015843419,-500.0,0.00013698,2]
[346507513,1735015843428,-500.0,0.00013698,2]
[346507514,1735015843438,-500.0,0.00013698,2]
[346507515,1735015843448,-500.0,0.00013698,2]
[346507516,1735015843457,-500.83277182,0.00013698,2]
[346507517,1735015843466,-500.0,0.00013698,2]
[346507518,1735015843476,-500.0,0.00013698,2]
[346507519,1735015843485,-500.0,0.00013698,2]
[346507520,1735015843495,-500.0,0.00013698,2]
[346507521,1735015843504,-553.92,0.00013698,4]
[346507522,1735015843513,-500.0,0.00013698,2]
[346507523,1735015843522,-500.0,0.00013698,2]
[346507524,1735015843531,-500.0,0.00013698,2]
[346507525,1735015843541,-197.29548316,0.00013698,2]
[346507526,1735015843549,-500.0,0.00013698,2]
[346507527,1735015843558,-500.0,0.00013698,2]
[346507528,1735015843567,-500.0,0.00013698,2]
[346507529,1735015843577,-500.0,0.00013698,2]
[346507530,1735015843586,-500.0,0.00013698,2]
[346507531,1735015843595,-500.0,0.00013698,2]
[346507532,1735015843604,-500.0,0.00013698,2]
[346507533,1735015843613,-500.0,0.00013698,2]
[346507534,1735015843622,-500.0,0.00013698,2]
[346507535,1735015843632,-500.0,0.00013698,2]
[346507536,1735015843641,-500.0,0.00013698,2]
[346507537,1735015843650,-500.0,0.00013698,2]
[346507538,1735015843660,-500.0,0.00013698,2]
[346507539,1735015843669,-527.5,0.00013698,2]
[346507540,1735015843678,-500.0,0.00013698,2]
[346507541,1735015843689,-500.0,0.00013698,2]
[346507542,1735015843698,-500.86396231,0.00013698,2]
[346507543,1735015843707,-500.0,0.00013698,2]
[346507544,1735015843716,-500.0,0.00013698,2]
[346507545,1735015843725,-500.0,0.00013698,2]
[346507546,1735015843734,-500.0,0.00013698,2]
[346507547,1735015843744,-500.0,0.00013698,2]
[346507548,1735015843753,-500.0,0.00013698,2]
[346507549,1735015843762,-500.0,0.00013698,2]
[346507550,1735015843772,-500.0,0.00013698,2]
[346507551,1735015843781,-500.0,0.00013698,2]
[346507552,1735015843791,-500.0,0.00013698,2]
[346507553,1735015843800,-129.29979416,0.00013698,2]
[346507554,1735015843813,-370.70020584,0.00013698,2]
[346507555,1735015843822,-500.0,0.00013698,2]
[346507556,1735015843831,-500.0,0.00013698,2]
[346507557,1735015843841,-500.0,0.00013698,2]
[346507558,1735015843850,-500.0,0.00013698,2]
[346507559,1735015843859,-502.44280112,0.00013698,2]
[346507560,1735015843869,-500.0,0.00013698,2]
[346507561,1735015843878,-500.0,0.00013698,2]
[346507562,1735015843887,-575.85214423,0.00013698,2]
[346507563,1735015843897,-203.53211893,0.00013698,2]
[346507564,1735015843906,-563.16787645,0.00013698,2]
[346507565,1735015843915,-500.0,0.00013698,2]
[346507566,1735015843924,-500.0,0.00013698,2]
[346507567,1735015843934,-500.0,0.00013698,2]
[346507568,1735015843943,-500.0,0.00013698,2]
[346507569,1735015843953,-500.0,0.00013698,2]
[346507570,1735015843962,-500.0,0.00013698,2]
[346507571,1735015843971,-500.0,0.00013698,2]
[346507572,1735015843980,-201.16247913,0.00013698,2]
[346507573,1735015843989,-695.29,0.00013698,2]
[346507574,1735015843998,-500.0,0.00013698,2]
[346507575,1735015844007,-500.0,0.00013698,2]
[346507576,1735015844016,-500.0,0.00013698,2]
[346507577,1735015844025,-500.0,0.00013698,2]
[346507578,1735015844034,-500.0,0.00013698,2]
[346507579,1735015844044,-500.0,0.00013698,2]
[346507580,1735015844053,-500.0,0.00013698,2]
[346507581,1735015844062,-500.0,0.00013698,2]
[346507582,1735015844071,-657.92,0.00013698,2]
[346507583,1735015844081,-500.0,0.00013698,2]
[346507584,1735015844090,-500.0,0.00013698,2]
[346507585,1735015844099,-500.0,0.00013698,2]
[346507586,1735015844109,-237.27006419,0.00013698,2]
[346507625,1735017032569,-250.0,0.00011481,2]
[346507626,1735017032579,-300.0,0.00011596,2]
[346507627,1735017032589,-300.0,0.00011596,2]
[346507628,1735017032598,-1604.19669379,0.00011597,2]
[346507629,1735017032609,-1566.54940428,0.00011597,2]
[346507630,1735017032647,-633.90707799,0.00011597,2]
[346507631,1735017032686,-1781.26200006,0.00011597,2]
[346507632,1735017032746,-11156.91057108,0.00011597,2]
[346507633,1735017032755,-10000.0,0.00012,2]
[346507634,1735017032765,-191.43045937,0.00012291,2]
[346507635,1735017032775,-26619.4679352,0.00012391,2]
[346507636,1735017032784,-150.0,0.00012392,2]
[346507637,1735017032794,-420.0,0.00012755,2]
[346507638,1735017032804,-153.0,0.00012927,2]
[346507639,1735017032814,-448.35,0.0001302,2]
[346507640,1735017032824,-704.1942268,0.00013041,2]
[346507641,1735017032833,-704.0591759,0.000131,2]
[346507642,1735017032844,-153.3796741,0.000131,2]
[346507643,1735017032854,-153.0,0.00013178,2]
[346507645,1735017032864,-214.1722873,0.00013178,2]
[346507647,1735017032876,-153.4013351,0.00013178,2]
[346507649,1735017032886,-306.6513846,0.00013178,2]
[346507651,1735017032896,-214.1722875,0.00013178,2]
[346507653,1735017032906,-214.1722873,0.00013178,2]
[346507655,1735017032915,-153.0,0.00013178,2]
[346507657,1735017032925,-155.2702636,0.00013178,2]
[346507659,1735017032935,-214.1722875,0.00013178,2]
[346507661,1735017032945,-153.0,0.00013178,2]
[346507663,1735017032956,-10572.50032589,0.00013522,2]
[346507665,1735017032966,-210.3138641,0.00013561,2]
[346507667,1735017032975,-229.777,0.00013598,2]
[346507669,1735017032985,-666.0,0.00013598,2]
[346507671,1735017032995,-437.0,0.000136,4]
[346507673,1735017033004,-1000.0,0.00013654,2]
[346507675,1735017033013,-500.0,0.0001368,2]
[346507677,1735017033023,-500.0,0.0001368,2]
[346507679,1735017033033,-500.0,0.0001368,2]
[346507681,1735017033043,-500.0,0.0001368,2]
[346507683,1735017033052,-500.0,0.0001368,2]
[346507685,1735017033062,-323.23518854,0.0001368,2]
[346507687,1735017033072,-443.14878808,0.0001368,2]
[346507689,1735017033083,-525.93571964,0.0001368,2]
[346507691,1735017033093,-6526.24616662,0.00013683,2]
[346507692,1735017033107,-2064.5055936,0.00013683,2]
[346507708,1735017038193,-16572.63531552,0.00013683,2]
[346507709,1735017038203,-1713.8790922,0.00013698,2]
[346507710,1735017038212,-500.0,0.00013698,2]
[346507711,1735017038221,-637.58638387,0.00013698,2]
[346507712,1735017038231,-212.75485736,0.00013698,2]
[346507713,1735017038241,-500.0,0.00013698,2]
[346507714,1735017038251,-500.0,0.00013698,2]
[346507715,1735017038260,-500.0,0.00013698,2]
[346507716,1735017038270,-500.0,0.00013698,2]
[346507717,1735017038280,-500.0,0.00013698,2]
[346507718,1735017038290,-500.0,0.00013698,2]
[346507719,1735017038299,-501.33091759,0.00013698,2]
[346507720,1735017038308,-500.0,0.00013698,2]
[346507721,1735017038317,-500.45980002,0.00013698,2]
[346507722,1735017038327,-12534.3538385,0.00013698,2]
[346507723,1735017038336,-500.0,0.00013698,2]
[346507724,1735017038346,-502.552694,0.00013698,2]
[346507725,1735017038355,-500.0,0.00013698,2]
[346507726,1735017038364,-500.0,0.00013698,2]
[346507727,1735017038374,-411.07347572,0.00013698,2]
[346507728,1735017038384,-500.0,0.00013698,2]
[346507729,1735017038393,-500.0,0.00013698,2]
[346507730,1735017038404,-500.0,0.00013698,2]
[346507731,1735017038414,-500.0,0.00013698,2]
[346507732,1735017038424,-502.02731554,0.00013698,2]
[346507733,1735017038441,-500.0,0.00013698,2]
[346507734,1735017038451,-500.0,0.00013698,2]
[346507735,1735017038465,-500.0,0.00013698,2]
[346507736,1735017038476,-502.78053752,0.00013698,2]
[346507737,1735017038486,-504.41153615,0.00013698,2]
[346507738,1735017038497,-500.0,0.00013698,2]
[346507739,1735017038507,-500.0,0.00013698,2]
[346507740,1735017038518,-500.0,0.00013698,2]
[346507741,1735017038528,-500.0,0.00013698,2]
[346507742,1735017038543,-500.0,0.00013698,2]
[346507743,1735017038554,-500.0,0.00013698,2]
[346507744,1735017038564,-500.0,0.00013698,2]
[346507745,1735017038573,-151.0,0.00013698,2]
[346507746,1735017038584,-156.485502,0.00013698,2]
[346507747,1735017038593,-500.0,0.00013698,2]
[346507748,1735017038603,-501.16110085,0.00013698,2]
[346507749,1735017038613,-500.0,0.00013698,2]
[346507750,1735017038623,-501.7826636,0.00013698,2]
[346507751,1735017038632,-513.76,0.00013698,2]
[346507752,1735017038642,-500.0,0.00013698,2]
[346507753,1735017038651,-500.0,0.00013698,2]
[346507754,1735017038661,-642.75045363,0.00013698,2]
[346507755,1735017038670,-500.0,0.00013698,2]
[346507756,1735017038679,-500.0,0.00013698,2]
[346507757,1735017038689,-500.0,0.00013698,2]
[346507758,1735017038699,-500.0,0.00013698,2]
[346507759,1735017038712,-500.0,0.00013698,2]
[346507760,1735017038725,-500.0,0.00013698,2]
[346507761,1735017038735,-500.0,0.00013698,2]
[346507762,1735017038744,-500.0,0.00013698,2]
[346507763,1735017038753,-500.0,0.00013698,2]
[346507764,1735017038762,-500.0,0.00013698,2]
[346507765,1735017038771,-500.0,0.00013698,2]
[346507766,1735017038781,-500.0,0.00013698,2]
[346507767,1735017038791,-533.79,0.00013698,2]
[346507768,1735017038800,-501.13524061,0.00013698,2]
[346507769,1735017038810,-385.4457162,0.00013698,2]
[346507770,1735017038819,-500.0,0.00013698,2]
[346507771,1735017038829,-644.15643872,0.00013698,2]
[346507772,1735017038838,-500.0,0.00013698,2]
[346507773,1735017038848,-500.0,0.00013698,2]
[346507774,1735017038857,-500.0,0.00013698,2]
[346507775,1735017038867,-500.0,0.00013698,2]
[346507776,1735017038876,-500.0,0.00013698,2]
[346507777,1735017038886,-500.0,0.00013698,2]
[346507778,1735017038895,-500.0,0.00013698,2]
[346507779,1735017038904,-510.89,0.00013698,2]
[346507780,1735017038915,-500.0,0.00013698,2]
[346507781,1735017038924,-501.67118395,0.00013698,2]
[346507782,1735017038934,-710.1,0.00013698,2]
[346507783,1735017038944,-500.0,0.00013698,2]
[346507784,1735017038957,-963.27,0.00013698,2]
[346507785,1735017038967,-500.0,0.00013698,2]